bitfinex-derivatives/quotes_SOLF0:USTF0_20250114
["timestamp","ask_amount","ask_price","bid_price","bid_amount"]
[1736831779083,8.1243,186.36,186.3,2.685]
[1736831779279,8.1243,186.36,186.24,12.45724628]
[1736831779479,2.6843,186.36,186.24,12.45724628]
[1736831779673,2.6843,186.36,186.3,2.685]
[1736831782177,2.6843,186.35,186.3,2.685]
[1736831782977,5.44,186.37,186.26,1.5821]
[1736831783183,2.684,186.37,186.31,2.6847]
[1736831783582,2.684,186.37,186.27,14.12284628]
[1736831785779,2.684,186.37,186.31,2.6848]
[1736831786491,12.45724628,186.38,186.31,2.6848]
[1736831786788,12.45724628,186.35,186.27,1.6656]
[1736831787289,12.45724628,186.35,186.26,1.5821]
[1736831787481,12.45724628,186.35,186.25,1.5392]
[1736831787686,12.45724628,186.32,186.21,12.45724628]
[1736831788376,1.574,186.31,186.21,12.45724628]
[1736831789077,2.6851,186.3,186.25,2.6857]
[1736831789879,2.6851,186.3,186.21,12.45724628]
[1736831790179,2.6851,186.3,186.26,2.6856]
[1736831792390,1.574,186.31,186.26,2.6856]
[1736831792688,17.89724628,186.32,186.26,2.6856]
[1736831793388,7.0275,186.37,186.3,2.6849]
[1736831793592,7.0275,186.37,186.27,12.45724628]
[1736831793791,2.6843,186.35,186.27,12.45724628]
[1736831793979,2.6843,186.35,186.31,2.6849]
[1736831794587,7.0275,186.37,186.31,2.6849]
[1736831794790,2.6842,186.36,186.31,2.6849]
[1736831796585,7.0275,186.37,186.31,2.6849]
[1736831796890,2.6843,186.35,186.31,2.6849]
[1736831800192,2.6843,186.35,186.3,2.685]
[1736831800689,10.1693,186.37,186.3,2.685]
[1736831800889,12.45724628,186.35,186.28,2.6852]
[1736831801394,2.6846,186.33,186.29,2.6851]
[1736831803297,15.14154628,186.35,186.3,2.6849]
[1736831803490,15.14154628,186.35,186.25,5.0169]
[1736831803896,15.14154628,186.35,186.3,2.6849]
[1736831805498,15.14154628,186.35,186.31,2.6848]
[1736831807896,5.44,186.37,186.27,12.45724628]
[1736831808392,15.14114628,186.38,186.33,2.6844]
[1736831808592,12.45724628,186.43,186.33,12.45724628]
[1736831808794,12.45724628,186.46,186.33,12.45724628]
[1736831809096,2.6831,186.44,186.34,4.832]
[1736831809403,7.96557381,186.38,186.32,7.96557381]
[1736831809699,10.64957381,186.38,186.33,2.6845]
[1736831809895,7.96557381,186.38,186.28,5.44]
[1736831810091,7.96557381,186.38,186.31,7.96557381]
[1736831810398,5.03137398,186.45,186.33,2.6846]
[1736831810399,7.96557381,186.37,186.33,2.6846]
[1736831810996,7.96557381,186.37,186.31,7.96557381]
[1736831811300,2.684,186.38,186.34,2.6844]
[1736831812507,15.13109293,186.4,186.32,2.6847]
[1736831812702,15.13109293,186.4,186.29,12.44739293]
[1736831813507,2.6838,186.39,186.34,2.6843]
[1736831820310,12.44739293,186.4,186.29,12.44739293]
[1736831820512,12.44739293,186.43,186.36,2.6841]
[1736831820804,191.0,186.45,186.32,12.44739293]
[1736831821009,191.0,186.45,186.3,12.44739293]
[1736831821010,193.6829,186.45,186.4,2.6836]
[1736831821208,191.0,186.45,186.38,12.44739293]
[1736831821409,7.5472,186.47,186.42,2.6833]
[1736831821603,4.8646,186.47,186.38,12.44739293]
[1736831822003,12.44739293,186.46,186.35,12.44739293]
[1736831822608,12.44739293,186.49,186.38,12.44739293]
[1736831823019,17.88739293,186.49,186.38,12.44739293]
[1736831823313,12.44739293,186.46,186.35,12.44739293]
[1736831823713,2.6829,186.45,186.4,2.6835]
[1736831824902,2.6829,186.45,186.35,12.44739293]
[1736831824903,12.44739293,186.46,186.35,12.44739293]
[1736831826103,15.13009293,186.46,186.41,2.6833]
[1736831826715,17.88739293,186.49,186.38,12.44739293]
[1736831827409,20.56979293,186.49,186.38,12.44739293]
[1736831827612,5.44,186.51,186.41,12.44739293]
[1736831827814,12.44739293,186.52,186.41,12.44739293]
[1736831828013,2.6823,186.5,186.45,2.6827]
[1736831828713,2.6823,186.5,186.41,12.44739293]
[1736831828714,2.6824,186.49,186.44,2.683]
[1736831830916,2.6824,186.49,186.45,2.6828]
[1736831831411,7.95709436,186.48,186.45,2.6828]
[1736831832912,7.95709436,186.46,186.4,7.95709436]
[1736831833114,7.95709436,186.44,186.34,8.05134415]
[1736831833314,7.95709436,186.44,186.39,7.95709436]
[1736831834119,7.95709436,186.44,186.39,2.6836]
[1736831834818,10.64019436,186.44,186.39,2.6836]
[1736831835920,7.95709436,186.4,186.37,2.684]
[1736831836115,7.95709436,186.38,186.34,4.81934415]
[1736831837118,7.95709436,186.38,186.35,2.6843]
[1736831837422,7.95709436,186.38,186.34,4.81934415]
[1736831838422,7.95709436,186.38,186.35,2.6843]
[1736831839117,7.95709436,186.38,186.36,2.6841]
[1736831844018,10.64079436,186.4,186.36,2.6841]
[1736831844218,5.44,186.43,186.38,7.95709436]
[1736831844219,10.64039436,186.43,186.38,7.95709436]
[1736831845426,10.64039436,186.43,186.38,10.64099436]
[1736831845726,2.6833,186.42,186.38,2.6839]
[1736831848532,2.6833,186.42,186.38,10.64099436]
[1736831851230,7.95709436,186.41,186.36,7.95709436]
[1736831851418,10.64059436,186.41,186.36,10.64109436]
[1736831851829,10.64059436,186.41,186.36,7.95709436]
[1736831852923,7.95709436,186.39,186.34,4.81934415]
[1736831853124,7.95709436,186.37,186.34,4.81934415]
[1736831853525,7.95709436,186.37,186.34,7.50374415]
[1736831854021,7.95709436,186.35,186.34,4.81934415]
[1736831854225,7.95709436,186.35,186.28,92.08]
[1736831854430,7.95709436,186.35,186.29,7.95709436]
[1736831854829,10.64139436,186.35,186.31,2.6848]
[1736831855131,10.64139436,186.35,186.29,7.95709436]
[1736831855331,10.64139436,186.35,186.3,2.685]
[1736831855526,7.95709436,186.35,186.29,7.95709436]
[1736831855731,7.95709436,186.33,186.27,7.95709436]
[1736831856126,7.95709436,186.35,186.29,7.95709436]
[1736831857233,10.64139436,186.35,186.31,2.6847]
[1736831858738,10.64139436,186.35,186.3,2.685]
[1736831859135,10.64169436,186.33,186.29,7.95709436]
[1736831859334,10.64169436,186.33,186.28,2.6852]
[1736831859936,10.64169436,186.33,186.29,2.6851]
[1736831860632,191.0,186.43,186.31,7.95709436]
[1736831860827,191.0,186.43,186.24,4.8243]
[1736831860828,7.95709436,186.41,186.35,7.95709436]
[1736831861538,2.6837,186.4,186.35,10.64139436]
[1736831866136,2.6837,186.39,186.35,10.64139436]
[1736831866532,2.6839,186.38,186.33,10.64159436]
[1736831867243,2.6843,186.36,186.33,7.95709436]
[1736831871544,2.6843,186.36,186.32,2.6847]
[1736831873947,2.6844,186.35,186.31,10.64199436]
[1736831874137,7.95709436,186.35,186.31,2.6849]
[1736831874345,7.95709436,186.35,186.24,4.8243]
[1736831874543,7.95709436,186.35,186.28,7.95709436]
[1736831875849,7.95709436,186.33,186.28,7.95709436]
[1736831876251,7.95709436,186.33,186.3,2.685]
[1736831876450,7.95709436,186.33,186.24,4.8243]
[1736831876651,10.64199436,186.31,186.26,2.6855]
[1736831876848,10.64199436,186.31,186.25,7.95709436]
[1736831877748,10.64199436,186.31,186.26,2.6856]
[1736831877749,2.685,186.3,186.26,2.6856]
[1736831878953,2.6852,186.29,186.25,7.95709436]
[1736831880049,2.6852,186.29,186.25,10.64279436]
[1736831880650,7.95709436,186.33,186.27,7.95709436]
[1736831881252,7.95709436,186.33,186.29,2.6851]
[1736831881452,5.44,186.36,186.29,2.6851]
[1736831881453,5.44,186.36,186.29,7.95709436]
[1736831881755,13.39709436,186.36,186.29,7.95709436]
[1736831882155,7.95709436,186.36,186.32,2.6847]
[1736831882456,7.95709436,186.36,186.29,7.95709436]
[1736831882656,7.95709436,186.36,186.3,2.685]
[1736831883654,2.6846,186.33,186.29,7.95709436]
[1736831883958,7.95709436,186.32,186.28,2.6852]
[1736831887362,7.95709436,186.32,186.27,7.95709436]
[1736831887559,7.95709436,186.32,186.27,2.6854]
[1736831888859,7.95709436,186.3,186.22,5.25149169]
[1736831889158,7.95709436,186.28,186.22,13.20858605]
[1736831889359,7.95709436,186.28,186.24,2.6858]
[1736831889859,7.95709436,186.28,186.22,13.20858605]
[1736831890054,7.95709436,186.28,186.25,2.6857]
[1736831891859,7.95709436,186.28,186.22,13.20858605]
[1736831892058,10.64269436,186.26,186.22,5.25149169]
[1736831893059,7.95709436,186.26,186.23,2.686]
[1736831893258,7.95709436,186.26,186.22,5.25149169]
[1736831893662,2.6852,186.29,186.24,2.6858]
[1736831893858,7.95709436,186.27,186.24,2.6858]
[1736831895459,7.95709436,186.25,186.22,2.6861]
[1736831895662,7.95709436,186.23,186.11,5.44]
[1736831895863,7.95709436,186.23,186.16,7.95709436]
[1736831896764,7.95709436,186.23,186.19,2.6865]
[1736831897258,7.95709436,186.23,186.18,7.95709436]
[1736831897960,7.95709436,186.23,186.13,4.864]
[1736831898160,7.95709436,186.19,186.15,7.95709436]
[1736831898567,5.44,186.23,186.2,2.6864]
[1736831898765,13.39709436,186.23,186.2,2.6864]
[1736831900065,191.0,186.28,186.22,2.6861]
[1736831900261,7.95709436,186.26,186.21,7.95709436]
[1736831901167,7.95709436,186.26,186.23,2.686]
[1736831901671,4.8786,186.29,186.21,7.95709436]
[1736831901964,7.95709436,186.31,186.25,7.95709436]
[1736831902166,7.95709436,186.32,186.27,7.95709436]
[1736831902467,7.95709436,186.34,186.27,7.95709436]
[1736831902663,7.95709436,186.34,186.31,2.6848]
[1736831902867,7.95709436,186.34,186.29,7.95709436]
[1736831903458,7.95709436,186.34,186.3,2.685]
[1736831903967,7.95709436,186.32,186.28,2.6852]
[1736831905070,7.95709436,186.3,186.26,2.6855]
[1736831905270,7.95709436,186.3,186.23,7.95709436]
[1736831906070,7.95709436,186.3,186.25,2.6857]
[1736831906866,7.95709436,186.28,186.25,2.6857]
[1736831907262,5.44,186.35,186.23,7.95709436]
[1736831907468,7.95709436,186.29,186.26,2.6855]
[1736831913171,7.95709436,186.29,186.23,7.95709436]
[1736831913475,5.44,186.35,186.22,4.7958]
[1736831913476,7.95709436,186.27,186.24,2.6857]
[1736831915776,7.95709436,186.27,186.25,2.6857]
[1736831915970,7.95709436,186.27,186.23,7.95709436]
[1736831916673,7.95709436,186.27,186.26,2.6856]
[1736831920385,7.95709436,186.27,186.21,7.95709436]
[1736831920586,7.95709436,186.23,186.18,53.15110163]
[1736831920989,7.95709436,186.21,186.18,53.15110163]
[1736831922087,7.95709436,186.21,186.2,2.6863]
[1736831924486,7.95709436,186.21,186.11,29.5004945]
[1736831924687,7.95709436,186.19,186.11,29.5004945]
[1736831924892,7.95709436,186.17,186.13,7.95709436]
[1736831925191,7.95709436,186.17,186.11,7.37512362]
[1736831925795,7.95709436,186.17,186.11,7.95709436]
[1736831926098,1.6205,186.25,186.15,7.95709436]
[1736831926293,7.95709436,186.22,186.15,7.95709436]
[1736831926893,7.95709436,186.22,186.18,2.6866]
[1736831927488,7.95709436,186.2,186.18,2.6866]
[1736831928691,7.95709436,186.2,186.14,7.95709436]
[1736831928892,7.95709436,186.2,186.17,2.6869]
[1736831930588,7.95709436,186.18,186.17,2.6869]
[1736831930894,7.95709436,186.18,186.12,7.95709436]
[1736831931288,7.95709436,186.18,186.15,2.6872]
[1736831934294,7.95709436,186.16,186.15,2.6872]
[1736831935096,7.95709436,186.16,186.14,2.6873]
[1736831935995,3.2841,186.2,186.16,2.687]
[1736831936196,7.95709436,186.19,186.14,7.95709436]
[1736831936492,7.95709436,186.19,186.15,2.6871]
[1736831936696,7.95709436,186.19,186.14,7.95709436]
[1736831938200,7.95709436,186.19,186.16,2.6869]
[1736831938899,3.2841,186.2,186.14,7.95709436]
[1736831939096,7.95709436,186.2,186.18,2.6866]
[1736831940400,7.95709436,186.2,186.15,2.6871]
[1736831940602,7.95709436,186.17,186.09,4.8396]
[1736831940796,7.95709436,186.17,186.12,7.95709436]
[1736831942105,7.95709436,186.17,186.16,2.687]
[1736831942905,7.95709436,186.19,186.14,7.95709436]
[1736831943110,7.95709436,186.19,186.18,2.6866]
[1736831943903,7.95709436,186.19,186.04,5.44]
[1736831943904,7.95709436,186.19,186.04,12.81512362]
[1736831944102,191.0,186.17,186.04,7.37512362]
[1736831944303,2.6872,186.15,186.1,2.6879]
[1736831944499,7.95709436,186.12,186.1,2.6879]
[1736831944903,7.95709436,186.12,186.09,2.688]
[1736831945407,7.95709436,186.1,186.03,7.95709436]
[1736831945604,7.95709436,186.08,186.03,7.95709436]
[1736831945903,7.95709436,186.1,186.03,7.95709436]
[1736831946606,7.95709436,186.1,186.07,2.6883]
[1736831946802,7.95709436,186.1,186.03,7.95709436]
[1736831947707,8.8053,186.16,186.07,7.95709436]
[1736831947909,15.06679436,186.16,186.11,7.95709436]
[1736831948099,13.41709436,186.16,186.11,7.95709436]
[1736831948401,13.41709436,186.16,186.12,2.6876]
[1736831948603,7.95709436,186.14,186.09,7.95709436]
[1736831949003,7.95709436,186.12,186.04,2.6887]
[1736831949206,7.95709436,186.12,186.07,7.95709436]
[1736831949503,7.95709436,186.12,186.08,2.6881]
[1736831950900,7.95709436,186.1,186.06,2.6883]
[1736831951099,7.95709436,186.08,186.06,2.6883]
[1736831956910,7.95709436,186.08,186.05,2.6886]
[1736831957711,2.6879,186.1,186.05,2.6886]
[1736831958008,7.95709436,186.08,186.05,2.6886]
[1736831961120,2.6879,186.1,186.06,2.6884]
[1736831961418,191.0,186.15,186.06,7.95709436]
[1736831961719,7.95709436,186.12,186.06,7.95709436]
[1736831963219,7.95709436,186.12,186.09,2.6879]
[1736831963616,1.5636,186.16,186.1,7.95709436]
[1736831963820,1.6561,186.17,186.14,2.6873]
[1736831964622,9.65999436,186.18,186.13,10.64449436]
[1736831965112,1.7029,186.18,186.16,2.6869]
[1736831965312,7.95709436,186.22,186.17,7.95709436]
[1736831965913,7.95709436,186.22,186.2,2.6863]
[1736831966114,7.95709436,186.22,186.17,7.95709436]
[1736831966522,7.95709436,186.2,186.11,4.8777]
[1736831966721,7.95709436,186.18,186.13,7.95709436]
[1736831967118,7.95709436,186.18,186.16,2.687]
[1736831967315,7.95709436,186.2,186.15,7.95709436]
[1736831968224,7.95709436,186.2,186.15,10.64409436]
[1736831968717,7.95709436,186.18,186.11,4.8777]
[1736831968918,7.95709436,186.18,186.13,2.6873]
[1736831969418,12.47379302,186.19,186.13,2.6873]
[1736831970825,2.6868,186.18,186.12,2.6876]
[1736831971019,12.47379302,186.19,186.12,2.6876]
[1736831971625,12.47379302,186.19,186.07,12.47379302]
[1736831971626,2.6869,186.17,186.07,12.47379302]
[1736831971924,2.6869,186.17,186.13,2.6875]
[1736831973424,2.6872,186.15,186.06,4.8019]
[1736831974518,12.47379302,186.16,186.06,4.8019]
[1736831975123,5.46,186.15,186.06,4.8019]
[1736831975822,8.1473,186.15,186.09,2.6879]
[1736831976922,2.6873,186.14,186.09,2.6879]
[1736831978325,2.6873,186.14,186.1,2.6879]
[1736831980422,2.6873,186.14,186.09,2.688]
[1736831981224,2.6873,186.14,186.06,4.8019]
[1736831981531,2.6873,186.14,186.1,2.6879]
[1736831985634,5.46,186.15,186.06,4.8019]
[1736831987136,5.46,186.15,186.12,2.6875]
[1736831987530,5.46,186.15,186.06,4.8019]
[1736831987733,5.46,186.15,186.13,2.6875]
[1736831987933,2.6869,186.17,186.13,2.6875]
[1736831988436,5.44,186.18,186.13,2.6875]
[1736831988640,5.44,186.18,186.06,4.8019]
[1736831988832,12.47379302,186.16,186.06,4.8019]
[1736831989232,2.6873,186.15,186.06,4.8019]
[1736831989435,7.98561025,186.14,186.08,7.98561025]
[1736831990235,7.98561025,186.14,186.09,2.6879]
[1736831990534,10.67301025,186.14,186.07,7.98561025]
[1736831991137,10.67301025,186.14,186.09,2.688]
[1736831992934,10.67301025,186.14,186.1,2.6878]
[1736831995541,1.6948,186.17,186.09,7.98561025]
[1736831995738,1.5897,186.2,186.13,7.98561025]
[1736831995937,7.98561025,186.22,186.15,7.98561025]
[1736831996840,7.98561025,186.22,186.19,2.6866]
[1736831997240,7.98561025,186.22,186.17,2.6868]
[1736831997430,7.98561025,186.22,186.15,7.98561025]
[1736831998138,7.98561025,186.22,186.18,2.6867]
[1736832000741,7.98561025,186.2,186.18,2.6867]
[1736832001541,10.67211025,186.2,186.1,2.6878]
[1736832001739,7.98561025,186.17,186.12,7.98561025]
[1736832002345,7.98561025,186.17,186.15,2.6871]
[1736832002547,7.98561025,186.17,186.06,4.8019]
[1736832002737,7.98561025,186.17,186.13,2.6874]
[1736832002941,2.6867,186.19,186.1,7.98561025]
[1736832003143,7.98561025,186.16,186.1,7.98561025]
[1736832003344,7.98561025,186.16,186.13,2.6874]
[1736832003547,7.98561025,186.16,186.1,7.98561025]
[1736832003945,7.98561025,186.16,186.12,2.6876]
[1736832005248,10.67271025,186.16,186.12,2.6876]
[1736832006145,7.98561025,186.14,186.1,2.6879]
[1736832006453,7.98561025,186.12,186.1,2.6879]
[1736832007852,7.98561025,186.12,186.09,2.688]
[1736832008249,1.541,186.16,186.06,12.78751025]
[1736832008454,7.98561025,186.14,186.11,2.6878]
[1736832012350,3.1474,186.2,186.1,7.98561025]
[1736832012558,7.98561025,186.18,186.12,7.98561025]
[1736832012747,7.98561025,186.2,186.14,7.98561025]
[1736832013154,7.98561025,186.2,186.15,2.6871]
[1736832013458,7.98561025,186.2,186.14,7.98561025]
[1736832014158,7.98561025,186.2,186.17,2.6868]
[1736832014353,7.98561025,186.2,186.14,7.98561025]
[1736832015156,7.98561025,186.18,186.12,7.98561025]
[1736832017061,7.98561025,186.18,186.14,2.6873]
[1736832017757,2.6867,186.19,186.14,2.6873]
[1736832017758,7.98561025,186.16,186.14,2.6873]
[1736832018963,10.67271025,186.16,186.11,2.6877]
[1736832019160,7.98561025,186.14,186.09,7.98561025]
[1736832019367,196.44,186.21,186.13,7.98561025]
[1736832019559,13.42561025,186.21,186.18,2.6867]
[1736832020264,16.11191025,186.21,186.17,2.6869]
[1736832020660,16.11191025,186.21,186.15,7.98561025]
[1736832021354,7.98561025,186.17,186.12,7.98561025]
[1736832021759,7.98561025,186.17,186.1,7.98561025]
[1736832021962,2.687,186.16,186.1,7.98561025]
[1736832022765,2.687,186.16,186.11,2.6877]
[1736832023165,7.98561025,186.15,186.1,7.98561025]
[1736832023866,7.98561025,186.15,186.11,2.6877]
[1736832024165,2.6874,186.14,186.08,7.98561025]
[1736832024362,7.98561025,186.13,186.1,2.6879]
[1736832024760,5.46,186.2,186.1,2.6879]
[1736832024961,7.98561025,186.14,186.11,2.6877]
[1736832025162,7.98561025,186.14,186.08,7.98561025]
[1736832026066,7.98561025,186.14,186.1,2.6879]
[1736832027969,5.46,186.2,186.1,7.98561025]
[1736832028172,7.98561025,186.19,186.14,7.98561025]
[1736832029464,5.46,186.22,186.14,7.98561025]
[1736832029657,13.44561025,186.22,186.16,7.98561025]
[1736832030768,13.44561025,186.22,186.18,2.6866]
[1736832031269,13.44561025,186.22,186.16,7.98561025]
[1736832031470,16.13181025,186.22,186.17,2.6869]
[1736832032569,7.98561025,186.22,186.16,7.98561025]
[1736832033065,7.98561025,186.22,186.18,2.6866]
[1736832034169,10.67181025,186.22,186.18,2.6866]
[1736832034371,7.98561025,186.22,186.16,7.98561025]
[1736832034670,7.98561025,186.22,186.17,2.6869]
[1736832035570,10.67181025,186.22,186.17,2.6869]
[1736832036471,10.67181025,186.22,186.18,2.6867]
[1736832039166,7.98561025,186.2,186.18,2.6867]
[1736832039372,7.98561025,186.2,186.16,2.6869]
[1736832043770,7.98561025,186.18,186.08,7.37512362]
[1736832043976,7.98561025,186.18,186.14,2.6872]
[1736832045578,7.98561025,186.18,186.15,2.6871]
[1736832046277,7.98561025,186.18,186.13,7.98561025]
[1736832046879,7.98561025,186.18,186.16,2.6869]
[1736832048173,7.98561025,186.2,186.17,2.6869]
[1736832048375,7.98561025,186.2,186.15,7.98561025]
[1736832048973,2.6862,186.22,186.15,7.98561025]
[1736832049181,7.98561025,186.21,186.15,7.98561025]
[1736832049375,7.4415,186.24,186.17,7.98561025]
[1736832049580,7.98561025,186.23,186.2,2.6864]
[1736832050676,44.6896419,186.25,186.17,7.98561025]
[1736832050882,4.9025,186.32,186.24,7.98561025]
[1736832051080,7.98561025,186.33,186.13,1.5894]
[1736832051280,7.98561025,186.33,186.27,7.98561025]
[1736832051480,7.98561025,186.33,186.29,2.685]
[1736832052173,7.98561025,186.31,186.26,2.6856]
[1736832053281,7.98561025,186.31,186.21,1.5894]
[1736832053282,7.98561025,186.29,186.23,7.98561025]
[1736832055083,7.98561025,186.29,186.25,2.6856]
[1736832056488,7.98561025,186.29,186.25,10.67121025]
[1736832058278,7.98561025,186.29,186.25,2.6856]
[1736832061687,5.46,186.36,186.21,1.5894]
[1736832061688,7.98561025,186.27,186.21,1.5894]
[1736832061879,10.67111025,186.27,186.22,10.67171025]
[1736832066491,10.67111025,186.27,186.23,2.686]
[1736832066492,7.98561025,186.27,186.23,2.686]
[1736832068085,7.98561025,186.24,186.14,3.2234]
[1736832068391,7.98561025,186.22,186.16,7.98561025]
[1736832069079,2.6853,186.29,186.2,7.98561025]
[1736832069286,164.82019746,186.43,186.24,7.98561025]
[1736832069287,7.98561025,186.3,186.24,7.98561025]
[1736832069886,2.6852,186.29,186.24,10.67141025]
[1736832070688,10.67061025,186.3,186.25,2.6856]
[1736832072096,10.67061025,186.3,186.24,7.98561025]
[1736832072294,7.98561025,186.3,186.26,2.6856]
[1736832072494,7.98561025,186.3,186.26,7.98561025]
[1736832072694,7.98561025,186.32,186.26,7.98561025]
[1736832072992,7.98561025,186.32,186.29,2.6851]
[1736832073496,7.98561025,186.32,186.26,7.98561025]
[1736832073890,7.98561025,186.33,186.26,7.98561025]
[1736832074193,7.98561025,186.33,186.27,7.98561025]
[1736832076097,7.98561025,186.35,186.29,7.98561025]
[1736832076494,4.993,186.39,186.31,7.98561025]
[1736832076692,7.98561025,186.37,186.31,7.98561025]
[1736832076888,7.98561025,186.37,186.32,2.6846]
[1736832077092,7.98561025,186.37,186.31,7.98561025]
[1736832077793,7.98561025,186.37,186.33,2.6845]
[1736832078799,7.98561025,186.37,186.32,2.6847]
[1736832078998,7.98561025,186.33,186.26,4.8008]
[1736832079298,7.98561025,186.31,186.28,2.6853]
[1736832080197,7.98561025,186.29,186.26,2.6856]
[1736832081498,7.98561025,186.29,186.24,7.98561025]
[1736832081700,7.98561025,186.29,186.27,2.6854]
[1736832085599,7.98561025,186.29,186.24,7.98561025]
[1736832085806,7.98561025,186.27,186.23,7.98561025]
[1736832086305,7.98561025,186.29,186.23,7.98561025]
[1736832087200,7.98561025,186.29,186.25,2.6857]
[1736832088009,7.98561025,186.29,186.24,2.6858]
[1736832088304,7.98561025,186.29,186.23,7.98561025]
[1736832088706,7.98561025,186.29,186.25,7.98561025]
[1736832090606,7.98561025,186.29,186.26,2.6856]
[1736832091606,7.98561025,186.29,186.24,2.6858]
[1736832092403,10.67081025,186.29,186.24,2.6858]
[1736832092709,7.98561025,186.29,186.25,2.6857]
[1736832092910,7.98561025,186.29,186.24,7.98561025]
[1736832094508,2.6849,186.31,186.26,2.6855]
[1736832094709,7.98561025,186.31,186.26,7.98561025]
[1736832095698,5.44,186.33,186.27,2.6854]
[1736832095699,7.98561025,186.29,186.27,2.6854]
[1736832096506,5.44,186.33,186.27,2.6854]
[1736832096907,7.98561025,186.3,186.27,2.6854]
[1736832099011,7.98561025,186.3,186.24,7.98561025]
[1736832100209,7.98561025,186.3,186.27,2.6854]
[1736832104617,2.6848,186.32,186.27,2.6854]
[1736832104817,7.98561025,186.31,186.27,2.6854]
[1736832106118,7.98561025,186.31,186.28,2.6853]
[1736832107518,10.67051025,186.31,186.28,2.6853]
[1736832107921,2.6851,186.3,186.24,7.98561025]
[1736832109918,7.98561025,186.31,186.28,2.6852]
[1736832112526,7.98561025,186.31,186.2,4.9542]
[1736832112825,10.67091025,186.29,186.24,2.6858]
[1736832113421,7.98561025,186.25,186.19,15.36073387]
[1736832113625,7.98561025,186.25,186.19,7.98561025]
[1736832115227,7.98561025,186.25,186.21,2.6862]
[1736832115630,2.6849,186.31,186.21,7.98561025]
[1736832115826,7.98561025,186.27,186.23,7.98561025]
[1736832116227,7.98561025,186.27,186.25,2.6856]
[1736832117230,7.98561025,186.27,186.22,7.98561025]
[1736832117421,7.98561025,186.27,186.26,2.6856]
[1736832117624,7.98561025,186.27,186.22,7.98561025]
[1736832119131,7.98561025,186.27,186.24,2.6858]
[1736832126135,5.44,186.34,186.22,7.98561025]
[1736832126432,9.93000727,186.37,186.28,7.98561025]
[1736832126639,7.98561025,186.35,186.28,7.98561025]
[1736832126839,10.66991025,186.35,186.3,2.6849]
[1736832127339,10.66991025,186.35,186.28,7.98561025]
[1736832127639,7.98561025,186.31,186.25,7.98561025]
[1736832128036,7.98561025,186.29,186.25,2.6857]
[1736832128341,7.98561025,186.27,186.21,7.98561025]
[1736832129240,7.98561025,186.27,186.23,2.6859]
[1736832130143,7.98561025,186.27,186.2,4.9289]
[1736832130342,7.98561025,186.25,186.22,2.6861]
[1736832132249,7.98561025,186.25,186.2,7.98561025]
[1736832132442,10.67141025,186.25,186.2,2.6864]
[1736832137947,7.98561025,186.23,186.2,2.6864]
[1736832138852,7.98561025,186.23,186.19,2.6866]
[1736832139249,7.98561025,186.23,186.18,4.64594871]
[1736832139450,10.67191025,186.21,186.16,2.687]
[1736832144452,7.98561025,186.21,186.16,2.687]
[1736832144654,2.6865,186.2,186.15,2.6871]
[1736832145256,10.67221025,186.19,186.15,2.6871]
[1736832147551,10.67261025,186.17,186.12,2.6876]
[1736832148752,7.98561025,186.13,186.08,4.89741604]
[1736832149158,2.687,186.16,186.11,7.98561025]
[1736832149359,10.67261025,186.16,186.11,7.98561025]
[1736832150060,10.67261025,186.16,186.11,10.67321025]
[1736832150254,10.67331025,186.12,186.01,77.71095112]
[1736832150449,7.98561025,186.07,186.01,29.5004945]
[1736832150653,7.98561025,186.07,186.02,7.98561025]
[1736832152261,7.98561025,186.07,186.06,2.6885]
[1736832152556,4.9745,186.19,186.06,7.98561025]
[1736832152761,7.98561025,186.18,186.12,7.98561025]
[1736832153260,7.98561025,186.16,186.12,7.98561025]
[1736832154061,7.98561025,186.16,186.13,2.6873]
[1736832158365,7.98561025,186.16,186.1,7.98561025]
[1736832158562,7.98561025,186.14,186.1,2.6878]
[1736832158862,7.98561025,186.12,186.1,2.6878]
[1736832159161,7.98561025,186.12,186.07,12.86981025]
[1736832159162,7.98561025,186.12,186.09,2.688]
[1736832162166,111.0,186.07,185.97,29.5004945]
[1736832162357,1.6295,186.06,185.97,29.5004945]
[1736832162560,7.98561025,186.04,185.97,29.5004945]
[1736832162758,7.98561025,186.04,185.98,7.98561025]
[1736832163160,2.6881,186.09,185.99,2.6894]
[1736832163360,7.98561025,186.07,186.0,7.98561025]
[1736832163762,5.7,186.1,186.0,7.98561025]